fUST/lending_fUST_20250505
["ID","MTS","AMOUNT","RATE_DAILY","PERIOD"]
[359925781,1746427851693,-400.0,0.00038904,14]
[359925782,1746427851702,-403.72,0.00038904,14]
[359925783,1746427851713,-1073.33,0.00038904,14]
[359925784,1746427851723,-629.87,0.00038904,14]
[359925785,1746427851732,-400.0,0.00038904,14]
[359925786,1746427851743,-1507.32,0.00038904,14]
[359925787,1746427851752,-1245.83,0.00038904,14]
[359925788,1746427851761,-497.19,0.00038904,14]
[359925789,1746427851771,-400.0,0.00038904,14]
[359925790,1746427851781,-461.53,0.00038904,14]
[359925791,1746427851791,-400.0,0.00038904,14]
[359925792,1746427851801,-400.0,0.00038904,14]
[359925793,1746427851810,-400.0,0.00038904,14]
[359925794,1746427851820,-400.0,0.00038904,14]
[359925795,1746427851829,-1349.59,0.00038904,14]
[359925796,1746427851839,-798.03,0.00038904,14]
[359925797,1746427851849,-400.0,0.00038904,14]
[359925798,1746427851859,-1430.25,0.00038904,14]
[359925799,1746427851947,-688.02,0.00038904,14]
[359925800,1746427851958,-708.01,0.00038904,14]
[359925801,1746427851968,-243.0,0.00038904,14]
[359925802,1746427851978,-666.63,0.00038904,14]
[359925803,1746427851987,-400.0,0.00038904,14]
[359925804,1746427851996,-209.157227,0.00038933,2]
[359925805,1746427852006,-200.0,0.00038954,120]
[359925806,1746427852016,-279.83205882,0.00039003,39]
[359925807,1746427852025,-200.0,0.00039053,120]
[359925808,1746427852036,-2114.83637931,0.00039168,3]
[359925809,1746427852046,-279.83205882,0.00039176,40]
[359925810,1746427852056,-400.0,0.00039178,14]
[359925811,1746427852066,-486.42,0.00039178,14]
[359925812,1746427852076,-400.0,0.00039178,14]
[359925813,1746427852085,-400.0,0.00039178,14]
[359925814,1746427852095,-400.0,0.00039178,2]
[359925815,1746427852104,-400.0,0.00039178,14]
[359925816,1746427852114,-431.19,0.00039178,14]
[359925817,1746427852123,-445.08,0.00039178,14]
[359925818,1746427852132,-400.0,0.00039178,14]
[359925819,1746427852141,-400.0,0.00039178,14]
[359925820,1746427852151,-400.0,0.00039178,14]
[359925821,1746427852161,-400.0,0.00039178,14]
[359925822,1746427852170,-400.0,0.00039178,14]
[359925823,1746427852179,-400.0,0.00039178,14]
[359925824,1746427852189,-400.0,0.00039178,14]
[359925825,1746427852198,-400.0,0.00039178,14]
[359925826,1746427852208,-403.72,0.00039178,14]
[359925827,1746427852220,-1073.33,0.00039178,14]
[359925828,1746427852229,-629.87,0.00039178,14]
[359925829,1746427852239,-400.0,0.00039178,14]
[359925830,1746427852249,-1507.32,0.00039178,14]
[359925831,1746427852263,-1245.83,0.00039178,14]
[359925832,1746427852272,-497.19,0.00039178,14]
[359925833,1746427852282,-400.0,0.00039178,14]
[359925834,1746427852291,-461.53,0.00039178,14]
[359925835,1746427852301,-400.19,0.00039178,14]
[359925836,1746427852311,-400.0,0.00039178,14]
[359925837,1746427852320,-400.0,0.00039178,14]
[359925838,1746427852330,-400.0,0.00039178,14]
[359925839,1746427852340,-1349.59,0.00039178,14]
[359925840,1746427852351,-798.03,0.00039178,14]
[359925841,1746427852361,-400.0,0.00039178,14]
[359925842,1746427852372,-1430.25,0.00039178,14]
[359925843,1746427852383,-688.02,0.00039178,14]
[359925844,1746427852393,-708.01,0.00039178,14]
[359925845,1746427852403,-151.0,0.00039178,14]
[359925846,1746427852413,-666.63,0.00039178,14]
[359925847,1746427852424,-151.0,0.00039178,14]
[359925848,1746427852433,-400.0,0.00039178,14]
[359925849,1746427852443,-283.5,0.00039242,30]
[359925850,1746427852453,-160.96876542,0.00039251,10]
[359925851,1746427852463,-552.00719789,0.00039265,2]
[359925852,1746427852473,-500.0,0.00039329,60]
[359925853,1746427852482,-279.83205882,0.00039348,40]
[359925854,1746427852492,-545.0,0.00039374,2]
[359925855,1746427852501,-707.0,0.00039374,2]
[359925856,1746427852511,-2243.0,0.00039374,2]
[359925857,1746427852520,-150.401,0.00039374,2]
[359925858,1746427852530,-150.0,0.00039374,2]
[359925859,1746427852539,-489.251,0.00039374,2]
[359925860,1746427852548,-400.0,0.00039452,14]
[359925861,1746427852558,-486.42,0.00039452,14]
[359925862,1746427852568,-400.0,0.00039452,14]
[359925863,1746427852577,-400.0,0.00039452,2]
[359925864,1746427852587,-492.76722353,0.00039452,14]
[359925865,1746427852596,-431.19,0.00039452,14]
[359925866,1746427852605,-445.08,0.00039452,14]
[359925867,1746427852614,-154.525406,0.00039452,14]
[359925868,1746427852623,-151.0,0.00039452,14]
[359925869,1746427852633,-400.0,0.00039452,14]
[359925870,1746427852643,-400.0,0.00039452,14]
[359925871,1746427852654,-400.0,0.00039452,14]
[359925872,1746427852663,-400.0,0.00039452,14]
[359925873,1746427852674,-400.0,0.00039452,14]
[359925874,1746427852684,-400.0,0.00039452,14]
[359925875,1746427852694,-151.0,0.00039452,14]
[359925876,1746427852704,-151.0,0.00039452,14]
[359925877,1746427852713,-151.0,0.00039452,14]
[359925878,1746427852723,-400.0,0.00039452,14]
[359925879,1746427852732,-220.806371,0.00039452,14]
[359925880,1746427852741,-400.0,0.00039452,14]
[359925881,1746427852751,-153.897466,0.00039452,14]
[359925882,1746427852761,-403.72,0.00039452,14]
[359925883,1746427852770,-1073.33,0.00039452,14]
[359925884,1746427852779,-151.0,0.00039452,14]
[359925885,1746427852788,-629.87,0.00039452,14]
[359925886,1746427852798,-400.0,0.00039452,14]
[359925887,1746427852808,-151.0,0.00039452,14]
[359925888,1746427852817,-1507.32,0.00039452,14]
[359925889,1746427852827,-1245.83,0.00039452,14]
[359925890,1746427852837,-497.19,0.00039452,14]
[359925891,1746427852847,-400.0,0.00039452,14]
[359925892,1746427852858,-461.53,0.00039452,14]
[359925893,1746427852867,-400.0,0.00039452,14]
[359925894,1746427852877,-400.0,0.00039452,14]
[359925895,1746427852886,-400.0,0.00039452,14]
[359925896,1746427852896,-1349.59,0.00039452,14]
[359925897,1746427852907,-798.03,0.00039452,14]
[359925898,1746427852917,-400.0,0.00039452,14]
[359925899,1746427852927,-1430.25,0.00039452,14]
[359925900,1746427852936,-688.02,0.00039452,14]
[359925901,1746427852947,-708.01,0.00039452,14]
[359925902,1746427852956,-666.63,0.00039452,14]
[359925903,1746427852965,-400.0,0.00039452,14]
[359925904,1746427852975,-279.83205882,0.00039521,40]
[359925905,1746427852985,-552.00719789,0.00039651,2]
[359925906,1746427852994,-279.83205882,0.00039693,41]
[359925907,1746427853004,-400.0,0.00039726,14]
[359925908,1746427853013,-486.42,0.00039726,14]
[359925909,1746427853023,-400.0,0.00039726,14]
[359925910,1746427853032,-400.0,0.00039726,2]
[359925911,1746427853041,-431.19,0.00039726,14]
[359925912,1746427853051,-445.08,0.00039726,14]
[359925913,1746427853060,-400.0,0.00039726,14]
[359925914,1746427853069,-400.0,0.00039726,14]
[359925915,1746427853078,-400.0,0.00039726,14]
[359925916,1746427853087,-400.0,0.00039726,14]
[359925917,1746427853097,-197.681191,0.00039726,14]
[359925918,1746427853107,-197.681191,0.00039726,14]
[359925919,1746427853117,-400.0,0.00039726,14]
[359925920,1746427853126,-400.0,0.00039726,14]
[359925921,1746427853136,-151.0,0.00039726,14]
[359925922,1746427853145,-190.35,0.00039726,14]
[359925923,1746427853155,-400.0,0.00039726,14]
[359925924,1746427853165,-403.72,0.00039726,14]
[359925925,1746427853174,-1073.33,0.00039726,14]
[359925926,1746427853183,-629.87,0.00039726,14]
[359925927,1746427853193,-400.0,0.00039726,14]
[359925928,1746427853203,-1245.83,0.00039726,14]
[359925929,1746427853213,-1507.32,0.00039726,14]
[359925930,1746427853222,-497.19,0.00039726,14]
[359925931,1746427853232,-151.0,0.00039726,14]
[359925932,1746427853242,-400.0,0.00039726,14]
[359925933,1746427853252,-151.0,0.00039726,14]
[359925934,1746427853265,-151.0,0.00039726,14]
[359925935,1746427853274,-461.53,0.00039726,14]
[359925936,1746427853284,-151.0,0.00039726,14]
[359925937,1746427853295,-400.0,0.00039726,14]
[359925938,1746427853304,-400.0,0.00039726,14]
[359925939,1746427853314,-400.0,0.00039726,14]
[359925940,1746427853324,-1349.59,0.00039726,14]
[359925941,1746427853336,-798.03,0.00039726,14]
[359925942,1746427853346,-400.0,0.00039726,14]
[359925943,1746427853357,-1430.25,0.00039726,14]
[359925944,1746427853367,-688.02,0.00039726,14]
[359925945,1746427853376,-708.01,0.00039726,14]
[359925946,1746427853387,-2647.116912,0.00039726,2]
[359925947,1746427853396,-2647.116912,0.00039726,2]
[359925948,1746427853405,-151.0,0.00039726,2]
[359925949,1746427853415,-666.63,0.00039726,14]
[359925950,1746427853425,-400.0,0.00039726,14]
[359925951,1746427853434,-279.83205882,0.00039866,41]
[359925952,1746427853444,-1009.39,0.000399,30]
[359925953,1746427853454,-552.00719789,0.00039919,2]
[359925954,1746427853464,-500.0,0.0003992,30]
[359925955,1746427853546,-2114.83637931,0.0003999,3]
[359925956,1746427853556,-400.0,0.0004,14]
[359925957,1746427853566,-3312.74,0.0004,30]
[359925958,1746427853575,-486.42,0.0004,14]
[359925959,1746427853585,-438.52337347,0.0004,14]
[359925960,1746427853595,-400.0,0.0004,2]
[359925961,1746427853604,-431.19,0.0004,14]
[359925962,1746427853614,-5774.22617716,0.0004,120]
[359925963,1746427853624,-445.08,0.0004,14]
[359925964,1746427853634,-400.0,0.0004,14]
[359925965,1746427853644,-400.0,0.0004,14]
[359925966,1746427853654,-400.0,0.0004,14]
[359925967,1746427853663,-400.0,0.0004,14]
[359925968,1746427853673,-400.0,0.0004,14]
[359925969,1746427853683,-295.28,0.0004,14]
[359925970,1746427853692,-324.90549637,0.0004,4]
[359925971,1746427853702,-400.0,0.0004,14]
[359925972,1746427853712,-403.72,0.0004,14]
[359925973,1746427853721,-1073.33,0.0004,14]
[359925974,1746427853730,-629.87,0.0004,14]
[359925975,1746427853740,-400.0,0.0004,14]
[359925976,1746427853749,-1507.32,0.0004,14]
[359925977,1746427853759,-1245.83,0.0004,14]
[359925978,1746427853768,-497.19,0.0004,14]
[359925979,1746427853778,-400.0,0.0004,14]
[359925980,1746427853787,-461.53,0.0004,14]
[359925981,1746427853797,-400.0,0.0004,14]
[359925982,1746427853807,-400.0,0.0004,14]
[359925983,1746427853816,-400.0,0.0004,14]
[359925984,1746427853826,-1349.59,0.0004,14]
[359925985,1746427853835,-798.03,0.0004,14]
[359925986,1746427853845,-400.0,0.0004,14]
[359925987,1746427853855,-1430.25,0.0004,14]
[359925988,1746427853865,-688.02,0.0004,14]
[359925989,1746427853875,-708.01,0.0004,14]
[359925990,1746427853885,-666.63,0.0004,14]
[359925991,1746427853894,-441.22541414,0.0004,14]
[359925992,1746427853904,-279.83205882,0.00040038,41]
[359925993,1746427853913,-47397.97645219,0.00040065,3]
[359925994,1746427853923,-72810.95390039,0.00040065,2]
[359925995,1746427853932,-231.28369723,0.00040087,2]
[359925996,1746427853942,-500.0,0.0004012,30]
[359925997,1746427853952,-159.75,0.000402,31]
[359925998,1746427853962,-159.75,0.000402,31]
[359925999,1746427853971,-913.22,0.000402,7]
[359926000,1746427853981,-279.83205882,0.0004021,42]
[359926001,1746427853991,-552.00719792,0.00040234,2]
[359926002,1746427854000,-400.0,0.00040273,14]
[359926003,1746427854009,-486.42,0.00040273,14]
[359926004,1746427854019,-400.0,0.00040273,2]
[359926005,1746427854029,-431.19,0.00040273,14]
[359926006,1746427854039,-445.08,0.00040273,14]
[359926007,1746427854048,-400.0,0.00040273,14]
[359926008,1746427854058,-204.48873491,0.00040273,14]
[359926009,1746427854068,-400.0,0.00040273,14]
[359926010,1746427854077,-346.96,0.00040273,14]
[359926011,1746427854088,-441.1,0.00040273,14]
[359926012,1746427854099,-293.02,0.00040273,14]
[359926013,1746427854109,-403.72,0.00040273,14]
[359926014,1746427854119,-1073.33,0.00040273,14]
[359926015,1746427854128,-629.87,0.00040273,14]
[359926016,1746427854138,-400.0,0.00040273,14]
[359926017,1746427854148,-1507.32,0.00040273,14]
[359926018,1746427854157,-1245.83,0.00040273,14]
[359926019,1746427854168,-497.19,0.00040273,14]
[359926020,1746427854178,-400.0,0.00040273,14]
[359926021,1746427854187,-461.53,0.00040273,14]
[359926022,1746427854197,-400.0,0.00040273,14]
[359926023,1746427854207,-400.0,0.00040273,14]
[359926024,1746427854216,-232.49,0.00040273,14]
[359926025,1746427854226,-1349.59,0.00040273,14]
[359926026,1746427854235,-798.03,0.00040273,14]
[359926027,1746427854244,-177.3,0.00040273,14]
[359926028,1746427854254,-1430.25,0.00040273,14]
[359926029,1746427854264,-688.02,0.00040273,14]
[359926030,1746427854274,-708.01,0.00040273,14]
[359926031,1746427854284,-151.0,0.00040273,14]
[359926032,1746427854293,-666.63,0.00040273,14]
[359926033,1746427854303,-155.612625,0.00040273,14]
[359926034,1746427854312,-181.97636196,0.00040366,28]
[359926035,1746427854322,-179.08150384,0.0004037,8]
[359926036,1746427854332,-279.83205882,0.00040383,42]
[359926037,1746427854342,-160.0,0.00040392,2]
[359926038,1746427854352,-160.0,0.00040392,2]
[359926039,1746427854362,-160.0,0.000404,62]
[359926040,1746427854372,-2000.0,0.000404,27]
[359926041,1746427854382,-4229.67275862,0.0004041,3]
[359926042,1746427854392,-151.0,0.00040419,30]
[359926043,1746427854401,-151.0,0.00040419,30]
[359926044,1746427854412,-200.0,0.00040419,30]
[359926045,1746427854421,-151.76845209,0.00040419,30]
[359926046,1746427854431,-500.0,0.0004042,15]
[359926047,1746427854441,-80999.21210844,0.0004042,30]
[359926048,1746427854450,-162.276085,0.0004042,30]
[359926049,1746427854460,-151.0,0.0004042,14]
[359926050,1746427854470,-151.0,0.0004042,14]
[359926051,1746427854479,-151.0,0.0004042,14]
[359926052,1746427854489,-500.0,0.00040425,60]
[359926053,1746427854498,-2114.83637931,0.0004046,3]
[359926054,1746427854507,-153.0,0.00040466,30]
[359926055,1746427854517,-153.0,0.00040466,30]
[359926056,1746427854527,-153.0,0.00040466,30]
[359926057,1746427854537,-153.0,0.00040466,30]
[359926058,1746427854547,-1171.7319498,0.00040466,30]
[359926059,1746427854556,-325.0956452,0.00040466,30]
[359926060,1746427854566,-151.0,0.00040466,14]
[359926061,1746427854576,-151.0,0.00040466,14]
[359926062,1746427854586,-151.0,0.00040466,14]
[359926063,1746427854596,-151.0,0.00040466,14]
[359926064,1746427854607,-151.0,0.00040466,14]
[359926065,1746427854617,-151.0,0.00040466,14]
[359926066,1746427854627,-151.0,0.00040466,14]
[359926067,1746427854636,-151.0,0.00040466,14]
[359926068,1746427854646,-151.0,0.00040466,14]
[359926069,1746427854656,-151.0,0.00040466,14]
[359926070,1746427854666,-151.0,0.00040466,14]
[359926071,1746427854676,-206.716248,0.00040466,14]
[359926072,1746427854686,-151.0,0.00040466,14]
[359926073,1746427854695,-221.65652,0.00040466,14]
[359926074,1746427854705,-166.015787,0.00040466,14]
[359926075,1746427854714,-2647.116912,0.00040466,2]
[359926076,1746427854724,-2647.116912,0.00040466,2]
[359926077,1746427854734,-2647.116912,0.00040466,2]
[359926078,1746427854744,-2647.116912,0.00040466,2]
[359926079,1746427854754,-2647.116912,0.00040466,2]
[359926080,1746427854764,-2647.116912,0.00040466,2]
[359926081,1746427854774,-2647.116912,0.00040466,2]
[359926082,1746427854783,-2647.116912,0.00040466,2]
[359926083,1746427854793,-2647.116912,0.00040466,2]
[359926084,1746427854803,-2647.116912,0.00040466,2]
[359926085,1746427854812,-2647.116912,0.00040466,2]
[359926086,1746427854821,-2647.116912,0.00040466,2]
[359926087,1746427854831,-2647.116912,0.00040466,2]
[359926088,1746427854840,-151.0,0.00040466,2]
[359926089,1746427854850,-151.0,0.00040466,2]
[359926090,1746427854860,-2647.116912,0.00040466,2]
[359926091,1746427854869,-2647.116912,0.00040466,2]
[359926092,1746427854879,-2647.116907,0.00040466,2]
[359926093,1746427854889,-151.0,0.00040466,2]
[359926094,1746427854898,-267.920116,0.00040466,2]
[359926095,1746427854907,-151.0,0.00040466,14]
[359926096,1746427854917,-173.562996,0.00040466,14]
[359926097,1746427854926,-50922.4875279,0.00040466,2]
[359926098,1746427854936,-208980.4549685,0.00040466,20]
[359926099,1746427855088,-543.73900073,0.00040466,20]
[359926100,1746427855106,-400.0,0.00036712,14]
[359926101,1746427855116,-23285.62807837,0.00040466,20]
[359926102,1746427856470,-2.25243877,0.00035616,14]
[359926103,1746427856613,-191.69428066,0.00035616,14]
[359926104,1746427856624,-52.0879378,0.00035616,14]
[359926105,1746427856634,-242.02401218,0.00035616,2]
[359926106,1746427856667,-206.29696108,0.00035616,2]
[359926107,1746427856676,-400.0,0.00035616,14]
[359926108,1746427856685,-400.0,0.00035616,14]
[359926109,1746427856694,-400.0,0.00035616,14]
[359926110,1746427856703,-400.0,0.00035616,14]
[359926111,1746427856712,-400.0,0.00035616,14]
[359926112,1746427856722,-400.0,0.00035616,14]
[359926113,1746427856731,-400.0,0.00035616,5]
[359926114,1746427856740,-400.0,0.00035616,14]
[359926115,1746427856750,-340.49041687,0.00035616,14]
[359926116,1746427856782,-59.50958313,0.00035616,14]
[359926117,1746427856791,-400.0,0.0003589,14]
[359926118,1746427856800,-400.0,0.0003589,14]
[359926119,1746427856810,-400.0,0.0003589,14]
[359926120,1746427856820,-101.64992268,0.0003589,14]
[359926121,1746427856831,-298.35007732,0.0003589,14]
[359926122,1746427856840,-83.57810721,0.00036164,14]
[359926124,1746427951371,166.19058854,0.00031726,3]
[359926128,1746428343782,-280.92420128,0.00027097,2]
[359926129,1746428343805,-182.08685211,0.00027297,2]
[359926130,1746428343826,-51.98894661,0.00027397,5]
[359926143,1746428830155,-413.71699723,0.00027397,2]
[359926144,1746428831089,-30.15937177,0.00027397,2]
[359926145,1746428831112,-449.83995662,0.00027397,5]
[359926146,1746428831133,-166.68797315,0.00028146,2]
[359926147,1746428831153,-670.27179,0.00028246,2]
[359926148,1746428831173,-159.220996,0.00028337,2]
[359926149,1746428831194,-465.01726168,0.00028479,2]
[359926150,1746428831215,-1200.0,0.0002936,2]
[359926151,1746428831237,-300.0,0.0002936,2]
[359926152,1746428831259,-300.0,0.0002936,2]
[359926153,1746428831280,-5487.0167046,0.00029361,2]
[359926154,1746428831313,-1491.96451427,0.00029361,2]
[359926155,1746428844135,-280.92420128,0.00027297,2]
[359926156,1746428844156,-2604.50743936,0.00029361,2]
[359926157,1746428948176,-776.74785,0.00029258,2]
[359926158,1746428948200,-280.92420128,0.0002926,2]
[359926159,1746428948232,-300.0,0.00029359,2]
[359926160,1746428948254,-500.0,0.0002936,2]
[359926161,1746428948275,-500.0000914,0.0002936,2]
[359926162,1746428948294,-500.0,0.0002936,2]
[359926163,1746428948325,-500.0,0.0002936,2]
[359926164,1746428948348,-500.0,0.0002936,2]
[359926165,1746428948368,-500.0,0.0002936,2]
[359926166,1746428948388,-504.90576172,0.0002936,2]
[359926167,1746428948407,-500.0,0.0002936,2]
[359926168,1746428948437,-500.0,0.0002936,2]
[359926169,1746428948456,-500.89625763,0.0002936,2]
[359926170,1746428948476,-500.0,0.0002936,2]
[359926171,1746428948498,-500.0,0.0002936,2]
[359926172,1746428948527,-500.0,0.0002936,2]
[359926173,1746428948548,-500.0,0.0002936,2]
[359926174,1746428948569,-500.0,0.0002936,2]
[359926175,1746428948600,-500.0,0.0002936,2]
[359926176,1746428948622,-500.0,0.0002936,2]
[359926177,1746428948642,-550.0,0.0002936,2]
[359926178,1746428948671,-500.0,0.0002936,2]
[359926179,1746428948692,-500.0,0.0002936,2]
[359926180,1746428948715,-500.0,0.0002936,2]
[359926181,1746428948745,-500.0,0.0002936,2]
[359926182,1746428948766,-500.0,0.0002936,2]
[359926183,1746428948786,-500.0,0.0002936,2]
[359926184,1746428948808,-383.57422388,0.0002936,2]
[359926185,1746428956200,-222.75435154,0.0002926,2]
[359926186,1746428956224,-116.42577612,0.0002936,2]
[359926187,1746428956247,-220.24485124,0.0002936,2]
[359926188,1746428956280,-500.0,0.0002936,2]
[359926189,1746428956302,-500.0,0.0002936,2]
[359926190,1746428956324,-500.0,0.0002936,2]
[359926191,1746428956356,-500.0,0.0002936,2]
[359926192,1746428956387,-500.0,0.0002936,2]
[359926193,1746428956412,-500.0,0.0002936,2]
[359926194,1746428956444,-500.0,0.0002936,2]
[359926195,1746428956467,-541.40448835,0.0002936,2]
[359926196,1746428956500,-500.0,0.0002936,2]
[359926197,1746428956530,-500.0,0.0002936,2]
[359926198,1746428956560,-500.0,0.0002936,2]
[359926199,1746428956589,-500.0,0.0002936,2]
[359926200,1746428956619,-372.77569138,0.0002936,2]
[359926201,1746428956650,-500.0,0.0002936,2]
[359926202,1746428956679,-500.0,0.0002936,2]
[359926203,1746428956707,-500.0,0.0002936,2]
[359926204,1746428956734,-500.0,0.0002936,2]
[359926205,1746428956762,-500.0,0.0002936,2]
[359926206,1746428956789,-500.0,0.0002936,2]
[359926207,1746428956817,-500.0,0.0002936,2]
[359926208,1746428956847,-500.0,0.0002936,2]
[359926209,1746428956874,-500.0,0.0002936,2]
[359926210,1746428956906,-500.0,0.0002936,2]
[359926211,1746428956934,-500.0,0.0002936,2]
[359926212,1746428956962,-500.0,0.0002936,2]
[359926213,1746428956990,-500.0,0.0002936,2]
[359926214,1746428957017,-500.0,0.0002936,2]
[359926215,1746428957043,-500.0,0.0002936,2]
[359926216,1746428957073,-500.0,0.0002936,2]
[359926217,1746428957102,-500.0,0.0002936,2]
[359926218,1746428957130,-500.0,0.0002936,2]
[359926219,1746428957160,-650.0,0.0002936,2]
[359926220,1746428957181,-31003.39619671,0.0002936,2]
[359926221,1746428957202,-16335.53770466,0.00029361,2]
[359926222,1746428973104,-4634.12453967,0.00025,4]
[359926223,1746428973125,-4467.99034171,0.00029361,2]
[359926224,1746428973148,-204.6426814,0.00029361,120]
[359926225,1746428973168,-500.0,0.00029373,5]
[359926226,1746428973191,-500.0,0.00029373,5]
[359926227,1746428973212,-500.0,0.00029373,5]
[359926228,1746428973232,-500.0,0.00029373,5]
[359926229,1746428973257,-500.0,0.00029373,2]
[359926230,1746428973281,-834.8694148,0.000299,21]
[359926231,1746428973300,-548.37399245,0.00030233,5]
[359926232,1746428973324,-834.86941477,0.00030279,22]
[359926233,1746428973352,-834.86941477,0.00030659,23]
[359926234,1746428973376,-834.86941477,0.00031038,24]
[359926235,1746428973397,-380.0,0.00031127,2]
[359926236,1746428973420,-303.47597946,0.00031357,2]
[359926237,1746428973441,-302.36189315,0.00031357,2]
[359926238,1746428973462,-222.05379995,0.00031357,2]
[359926239,1746428973483,-1094.7037603,0.00031359,2]
[359926240,1746428973504,-500.0,0.00031373,5]
[359926241,1746428973524,-742.3707814,0.00031387,2]
[359926242,1746428973548,-834.86941477,0.00031417,24]
[359926243,1746428973568,-160.0,0.00031753,3]
[359926244,1746428973592,-834.86941477,0.00031797,25]
[359926245,1746428973616,-1680.0,0.000318,3]
[359926246,1746428973637,-179.58695001,0.0003195,8]
[359926247,1746428973658,-336.30338288,0.00032107,2]
[359926248,1746428973678,-164.87987634,0.0003212,5]
[359926249,1746428973701,-834.86941477,0.00032176,26]
[359926250,1746428973722,-289.0,0.00032207,3]
[359926251,1746428973741,-301.0,0.00032207,3]
[359926252,1746428973761,-233.0,0.00032207,3]
[359926253,1746428973782,-1006.802424,0.00032266,2]
[359926254,1746428973802,-500.0,0.000323,2]
[359926255,1746428973823,-500.0,0.000323,5]
[359926256,1746428973846,-834.86941477,0.00032555,27]
[359926257,1746428973867,-151.14999302,0.00032696,10]
[359926258,1746428973889,-250.0,0.00032781,2]
[359926259,1746428973910,-26396.1618372,0.00032867,2]
[359926260,1746428973930,-164.65461376,0.00032877,2]
[359926261,1746428973954,-531.10730734,0.00032877,7]
[359926262,1746428973977,-1090.0,0.000329,7]
[359926263,1746428973998,-159.220996,0.00032903,2]
[359926264,1746428974022,-834.86941477,0.00032934,27]
[359926265,1746428974043,-153.28314002,0.00033156,2]
[359926266,1746428974064,-443.876369,0.00033165,2]
[359926267,1746428974085,-393.41134768,0.000332,5]
[359926268,1746428974107,-336.30338284,0.00033289,2]
[359926269,1746428974130,-834.86941477,0.00033314,28]
[359926270,1746428974150,-3636.84807289,0.00033465,2]
[359926271,1746428974220,-1363.15192711,0.00033465,2]
[359926277,1746429004117,1894.32978113,0.00030767,2]
[359926293,1746429032044,-374.05366051,0.00030767,2]
[359926294,1746429032059,-814.35919557,0.00030767,2]
[359926295,1746429032068,-151.14999302,0.00032696,10]
[359926296,1746429032077,-107.85221425,0.00033692,2]
[359926297,1746429032088,-142.79415309,0.00033692,2]
[359926298,1746429032097,-336.30338284,0.0003447,2]
[359926299,1746429032106,-847.4791886,0.00034794,3]
[359926329,1746429038135,-200.0,0.000298,120]
[359926331,1746429038146,-200.0,0.000315,120]
[359926333,1746429038155,-200.0,0.000332,120]
[359926335,1746429038165,-752.5208114,0.00034794,3]
[359926338,1746429038176,-500.0,0.00034795,2]
[359926340,1746429038186,-400.0,0.0003483,2]
[359926342,1746429038195,-500.0,0.00034852,5]
[359926344,1746429038205,-1000.0,0.00034852,5]
[359926346,1746429038214,-1017.41157516,0.00034852,5]
[359926348,1746429038224,-215.64904905,0.00034881,40]
[359926350,1746429038233,-1090.0,0.000349,7]
[359926352,1746429038243,-565.90734516,0.000349,31]
[359926354,1746429038252,-200.0,0.000349,120]
[359926356,1746429038262,-565.90734514,0.00035107,32]
[359926358,1746429038272,-565.90734514,0.00035314,32]
[359926360,1746429038283,-264.36,0.00035496,3]
[359926362,1746429038293,-793.11,0.00035496,3]